bitfinex/quotes_SOLUSD_20250917
["timestamp","ask_amount","ask_price","bid_price","bid_amount"]
[1758120027287,1e-08,235.36,235.35,15.9872375]
[1758120027488,1e-08,235.36,235.35,49.7672375]
[1758120027720,1e-08,235.36,235.35,54.67622836]
[1758120028096,1e-08,235.36,235.35,56.37788534]
[1758120029995,1e-08,235.36,235.35,55.71788534]
[1758120031055,1e-08,235.36,235.35,21.93788534]
[1758120031190,0.66000001,235.36,235.35,19.54624185]
[1758120031900,1e-08,235.36,235.35,19.54624185]
[1758120033004,0.66000001,235.36,235.35,19.54624185]
[1758120033199,1e-08,235.36,235.35,19.54624185]
[1758120034825,1e-08,235.36,235.35,21.93788534]
[1758120035026,1e-08,235.36,235.35,22.65788534]
[1758120035225,1e-08,235.39,235.36,13.59559401]
[1758120035528,1e-08,235.39,235.38,2.39164349]
[1758120035929,1e-08,235.39,235.38,18.40853261]
[1758120036421,1e-08,235.39,235.38,22.65698192]
[1758120037427,0.68000001,235.39,235.38,5.94974442]
[1758120037812,1e-08,235.39,235.38,5.94974442]
[1758120038321,1e-08,235.39,235.38,21.93698192]
[1758120038724,0.68000001,235.39,235.38,5.94974442]
[1758120040614,0.68000001,235.39,235.35,10.62247716]
[1758120040920,0.68,235.38,235.36,1.70180178]
[1758120041117,0.68,235.37,235.36,1.70180178]
[1758120042319,0.68,235.37,235.36,5.95061211]
[1758120042715,1e-08,235.39,235.36,16.57263794]
[1758120043124,0.68,235.38,235.36,16.57263794]
[1758120044442,0.68,235.37,235.36,16.57263794]
[1758120044819,0.68,235.37,235.36,4.24881033]
[1758120045319,2.21006923,235.37,235.34,4.24899296]
[1758120045634,1.53006923,235.35,235.34,4.24899296]
[1758120045837,1.53006923,235.35,235.33,1.70201902]
[1758120045838,2.21006923,235.35,235.33,1.70201902]
[1758120046036,2.21006923,235.34,235.33,1.70201902]
[1758120046445,2.21006923,235.34,235.32,4.30941774]
[1758120046738,2.21006923,235.33,235.32,0.06]
[1758120048931,6.4594212,235.33,235.32,0.06]
[1758120049123,4.92935197,235.33,235.32,0.06]
[1758120049329,6.4594212,235.33,235.32,0.06]
[1758120049647,2.21006923,235.33,235.32,0.06]
[1758120050058,6.4594212,235.33,235.32,0.06]
[1758120051269,40.2194212,235.33,235.32,0.06]
[1758120054741,55.34508444,235.33,235.32,0.06]
[1758120054939,3.06013846,235.31,235.3,0.06]
[1758120055141,1.53006923,235.31,235.3,0.06]
[1758120055358,2.21006923,235.31,235.3,0.06]
[1758120055660,35.97006923,235.31,235.3,0.06]
[1758120056643,40.21978237,235.31,235.3,0.06]
[1758120057660,41.7498516,235.31,235.3,0.06]
[1758120058045,41.7498516,235.31,235.29,0.06]
[1758120058046,6.45978237,235.31,235.29,0.06]
[1758120058252,35.29006923,235.3,235.29,0.06]
[1758120058449,1.53006923,235.3,235.29,0.06]
[1758120058765,41.72003221,235.3,235.29,0.06]
[1758120060064,55.31562622,235.3,235.29,0.06]
[1758120060256,55.31562622,235.3,235.25,0.06]
[1758120060257,1.53006923,235.28,235.25,0.06]
[1758120060463,1.53006923,235.26,235.25,0.06]
[1758120060865,14.87778958,235.25,235.22,0.06]
[1758120061082,1.53006923,235.23,235.22,0.06]
[1758120061573,2.18006923,235.23,235.22,0.06]
[1758120063069,6.43122767,235.23,235.22,0.06]
[1758120064662,13.59559401,235.22,235.2,0.06]
[1758120064886,35.31006923,235.21,235.17,0.06]
[1758120065049,5.78213148,235.18,235.17,0.06]
[1758120065481,1.53006923,235.18,235.17,0.06]
[1758120065684,33.76,235.18,235.17,0.76]
[1758120065972,35.29006923,235.18,235.17,0.76]
[1758120066162,35.29006923,235.18,235.17,0.06]
[1758120066359,35.29006923,235.18,235.17,0.76]
[1758120066557,35.29006923,235.18,235.17,0.06]
[1758120066754,1.53006923,235.18,235.17,0.06]
[1758120066972,35.29006923,235.18,235.17,0.76]
[1758120067955,0.03,235.25,235.17,5.01221819]
[1758120068154,1.53006923,235.22,235.18,0.7]
[1758120068384,1.53006923,235.23,235.18,0.7]
[1758120068607,33.78,235.22,235.18,0.7]
[1758120069094,0.03,235.25,235.19,4.25188145]
[1758120069388,1.53006923,235.22,235.2,0.7]
[1758120069557,33.76,235.21,235.2,0.7]
[1758120071479,1.53006923,235.23,235.21,4.25151991]
[1758120071683,33.76,235.22,235.21,4.95151991]
[1758120071893,33.76,235.22,235.21,0.7]
[1758120072491,35.29006923,235.22,235.21,0.7]
[1758120074196,35.29006923,235.22,235.18,4.25206225]
[1758120074365,35.29006923,235.22,235.19,0.7]
[1758120074568,35.29006923,235.22,235.2,0.7]
[1758120074762,0.03,235.25,235.21,0.7]
[1758120074973,0.03,235.25,235.17,10.69060764]
[1758120074974,1.53006923,235.22,235.17,0.06]
[1758120075168,3.06013846,235.18,235.17,0.06]
[1758120075487,36.82013846,235.18,235.17,0.06]
[1758120075690,37.53013846,235.18,235.17,0.06]
[1758120076301,41.78220071,235.18,235.17,0.06]
[1758120077095,13.59559401,235.17,235.15,0.06]
[1758120077394,1.53006923,235.16,235.15,0.06]
[1758120077597,2.24006923,235.16,235.15,0.06]
[1758120078369,6.49249311,235.16,235.12,0.06]
[1758120078595,2.24006923,235.15,235.12,0.06]
[1758120079370,2.24006923,235.15,235.1,0.06]
[1758120079371,1.53006923,235.13,235.1,0.06]
[1758120079678,1.53006923,235.11,235.09,0.06]
[1758120079888,35.29006923,235.1,235.09,0.06]
[1758120080089,36.00006923,235.1,235.09,0.06]
[1758120080492,40.25357837,235.1,235.09,0.06]
[1758120081284,40.25357837,235.1,235.08,0.2]
[1758120081474,1.53006923,235.09,235.04,0.06]
[1758120081675,1.53006923,235.07,235.04,0.06]
[1758120082002,41.41034615,235.07,235.04,0.06]
[1758120082182,7.65034615,235.05,235.04,0.06]
[1758120082583,13.59559401,235.09,235.04,0.06]
[1758120082807,1.53006923,235.05,235.04,0.76]
[1758120083498,35.29006923,235.05,235.04,0.76]
[1758120084703,35.29006923,235.05,235.04,0.06]
[1758120084997,40.25448318,235.05,235.04,0.06]
[1758120085201,39.54448318,235.05,235.04,0.06]
[1758120085382,35.29006923,235.05,235.04,0.06]
[1758120085792,40.25448318,235.05,235.04,0.06]
[1758120086380,35.29006923,235.05,235.04,0.06]
[1758120086789,39.54448318,235.05,235.04,0.06]
[1758120086989,35.29006923,235.05,235.04,0.06]
[1758120087592,1.53006923,235.05,235.04,0.06]
[1758120087892,39.54448318,235.05,235.04,0.06]
[1758120088809,38.01441395,235.05,235.04,0.06]
[1758120088993,39.54448318,235.05,235.04,0.06]
[1758120089392,40.25448318,235.05,235.04,0.06]
[1758120089914,39.54448318,235.05,235.04,0.06]
[1758120091292,5.78448318,235.05,235.04,0.06]
[1758120091493,35.29006923,235.05,235.04,0.06]
[1758120092314,39.54448318,235.05,235.04,0.06]
[1758120093114,5.78448318,235.05,235.04,0.06]
[1758120093320,39.54448318,235.05,235.04,0.06]
[1758120093496,35.29006923,235.05,235.04,0.06]
[1758120094014,39.54448318,235.05,235.04,0.06]
[1758120096215,40.20448318,235.05,235.04,0.06]
[1758120096412,39.54448318,235.05,235.04,0.06]
[1758120097314,35.29006923,235.05,235.04,0.06]
[1758120097502,39.54448318,235.05,235.04,0.06]
[1758120097691,1.53006923,235.05,235.04,0.06]
[1758120097896,35.29006923,235.05,235.04,0.06]
[1758120098095,39.54448318,235.05,235.04,0.06]
[1758120101117,142.33448132,235.09,235.04,0.74]
[1758120101118,131.7,235.09,235.04,0.74]
[1758120101300,1.53006923,235.05,235.04,0.74]
[1758120101506,35.27006923,235.05,235.04,0.74]
[1758120101817,40.39357588,235.05,235.04,0.06]
[1758120102213,40.39357588,235.05,235.04,0.74]
[1758120102811,36.16916193,235.05,235.04,0.74]
[1758120103816,40.42357588,235.05,235.04,0.06]
[1758120105117,36.16916193,235.05,235.04,0.74]
[1758120105711,0.03,235.05,235.04,0.74]
[1758120105923,36.16916193,235.05,235.04,0.74]
[1758120107325,40.42357588,235.05,235.04,0.06]
[1758120110334,36.16916193,235.05,235.04,0.06]
[1758120110829,36.16916193,235.05,235.04,0.74]
[1758120112009,36.16916193,235.05,235.04,0.06]
[1758120112207,43.48273781,235.05,235.04,0.06]
[1758120112734,38.68441395,235.05,235.04,0.06]
[1758120112910,40.42357588,235.05,235.04,0.06]
[1758120113306,41.08357588,235.05,235.04,0.06]
[1758120113511,43.48273781,235.05,235.04,0.06]
[1758120113725,38.54832386,235.05,235.04,0.06]
[1758120113919,40.40357588,235.05,235.04,0.06]
[1758120114111,41.06357588,235.05,235.04,0.06]
[1758120115736,36.14916193,235.05,235.04,0.06]
[1758120117213,40.40357588,235.05,235.04,0.06]
[1758120117419,6.68357588,235.05,235.04,0.06]
[1758120117620,40.40357588,235.05,235.04,0.06]
[1758120117840,41.06357588,235.05,235.04,0.06]
[1758120118922,7.34357588,235.05,235.04,0.06]
[1758120119115,40.40357588,235.05,235.04,0.06]
[1758120120839,43.46273781,235.05,235.04,0.06]
[1758120122336,44.5275126,235.05,235.04,0.06]
[1758120124120,10.8075126,235.05,235.04,0.06]
[1758120124328,42.10835067,235.05,235.04,0.06]
[1758120125840,3.49393672,235.05,235.04,0.06]
[1758120126050,37.19393672,235.05,235.04,0.06]
[1758120126431,41.44835067,235.05,235.04,0.06]
[1758120126952,42.16835067,235.05,235.04,0.06]
[1758120130044,45.71678958,235.05,235.04,0.06]
[1758120130557,42.16835067,235.05,235.04,0.06]
[1758120133058,8.46835067,235.05,235.04,0.06]
[1758120133257,42.14835067,235.05,235.04,0.06]
[1758120133454,41.42835067,235.05,235.04,0.06]
[1758120134249,58.14310661,235.05,235.04,0.06]
[1758120134450,145.29559401,235.04,235.01,0.06]
[1758120134756,15.99475594,235.02,235.01,0.06]
[1758120134936,17.05953073,235.02,235.01,0.06]
[1758120135137,17.77953073,235.02,235.01,0.06]
[1758120135742,30.55953073,235.02,235.0,0.06]
[1758120136057,26.37559401,235.0,234.89,0.67]
[1758120136263,15.99475594,234.97,234.91,0.67]
[1758120136464,54.2938788,234.97,234.91,0.67]
[1758120136679,17.77953073,234.97,234.92,0.67]
[1758120136865,4.25550023,234.99,234.96,0.87]
[1758120137068,2.39916193,234.97,234.96,0.87]
[1758120137369,2.39916193,234.97,234.96,0.2]
[1758120137562,36.07916193,234.97,234.96,0.87]
[1758120137766,36.07916193,234.97,234.96,0.2]
[1758120137963,36.07916193,234.97,234.96,0.87]
[1758120138374,2.39916193,234.97,234.96,0.87]
[1758120138549,36.07916193,234.97,234.96,0.87]
[1758120138748,36.07916193,234.97,234.96,0.2]
[1758120138956,40.33502438,234.97,234.96,0.2]
[1758120140057,41.05502438,234.97,234.96,0.2]
[1758120140258,54.65061839,234.97,234.96,0.2]
[1758120140958,55.71585739,234.97,234.96,0.2]
[1758120141680,22.03585739,234.97,234.96,0.2]
[1758120141857,55.71585739,234.97,234.96,0.2]
[1758120142052,54.99585739,234.97,234.96,0.2]
[1758120142361,53.93061839,234.97,234.96,0.2]
[1758120142870,6.65502438,234.97,234.96,0.87]
[1758120143074,40.33502438,234.97,234.96,0.2]
[1758120144864,6.65502438,234.97,234.96,0.2]
[1758120145072,40.33502438,234.97,234.96,0.2]
[1758120145980,40.33502438,234.97,234.96,0.87]
[1758120146163,40.33502438,234.97,234.96,0.2]
[1758120149488,6.65502438,234.97,234.96,0.2]
[1758120149786,40.31502438,234.97,234.96,0.2]
[1758120150793,2.39916193,234.97,234.96,0.2]
[1758120150977,36.05916193,234.97,234.96,0.2]
[1758120151466,40.31502438,234.97,234.96,0.2]
[1758120155075,40.31502438,234.97,234.96,0.88]
[1758120155381,36.05916193,234.97,234.96,0.88]
[1758120156894,2.39916193,234.97,234.96,0.88]
[1758120157085,2.39916193,235.01,234.96,5.13604358]
[1758120157272,0.03,235.05,234.97,0.68]
[1758120157467,33.64,235.04,234.97,3.07916193]
[1758120157786,0.03,235.0,234.99,4.25550023]
[1758120157967,33.67,235.0,234.99,0.68]
[1758120160390,33.67,235.0,234.99,4.93550023]
[1758120160391,0.03,235.0,234.99,4.93550023]
[1758120160600,33.67,235.0,234.99,4.93550023]
[1758120162510,33.67,235.0,234.99,0.68]
[1758120162707,35.20547519,235.0,234.97,0.68]
[1758120162909,1.53547519,234.98,234.96,0.2]
[1758120163211,35.17547519,234.97,234.96,0.2]
[1758120164208,33.64,234.97,234.96,0.2]
[1758120164383,35.17547519,234.97,234.96,0.2]
[1758120164703,35.15547519,234.97,234.96,0.2]
[1758120165216,39.41133764,234.97,234.96,0.2]
[1758120165383,40.11133764,234.97,234.96,0.2]
[1758120166574,39.41133764,234.97,234.96,0.2]
[1758120166801,35.15547519,234.97,234.96,0.2]
[1758120167385,1.53547519,234.97,234.96,0.2]
[1758120167589,35.15547519,234.97,234.96,0.2]
[1758120168211,40.11133764,234.97,234.96,0.2]
[1758120169873,83.70693165,234.97,234.96,0.2]
[1758120172737,83.00693165,234.97,234.96,0.2]
[1758120173030,49.38693165,234.97,234.96,0.2]
[1758120173236,83.68693165,234.97,234.96,0.2]
[1758120173910,34.25586245,234.97,234.96,0.2]
[1758120174114,69.39133764,234.97,234.96,0.2]
[1758120174719,67.85586245,234.97,234.96,0.2]
[1758120174919,69.39133764,234.97,234.96,0.2]
[1758120175636,69.42133764,234.97,234.96,0.2]
[1758120176130,67.88586245,234.97,234.96,0.2]
[1758120176329,69.42133764,234.97,234.96,0.2]
[1758120176829,70.11133764,234.97,234.96,0.2]
[1758120177320,69.42133764,234.97,234.96,0.2]
[1758120178121,70.11133764,234.97,234.96,0.2]
[1758120178321,83.70693165,234.97,234.96,0.2]
[1758120178520,84.77210855,234.97,234.96,0.2]
[1758120179737,84.08210855,234.97,234.96,0.2]
[1758120179908,84.77210855,234.97,234.96,0.2]
[1758120180109,48.94663336,234.97,234.96,0.2]
[1758120180418,51.17210855,234.97,234.96,0.2]
[1758120180624,84.77210855,234.97,234.96,0.2]
[1758120181635,83.01693165,234.97,234.96,0.2]
[1758120182038,83.70693165,234.97,234.96,0.2]
[1758120182736,50.10693165,234.97,234.96,0.2]
[1758120182920,83.70693165,234.97,234.96,0.2]
[1758120183407,82.99693165,234.97,234.96,0.2]
[1758120183604,31.56547519,234.97,234.96,0.92]
[1758120183825,69.40133764,234.97,234.96,0.92]
[1758120184034,69.40133764,234.97,234.96,0.2]
[1758120185132,65.14547519,234.97,234.96,0.2]
[1758120186535,70.06133764,234.97,234.96,0.2]
[1758120186934,69.40133764,234.97,234.96,0.2]
[1758120188110,69.40133764,234.97,234.96,0.88]
[1758120188912,65.14547519,234.97,234.96,0.88]
[1758120189334,69.40133764,234.97,234.96,0.2]
[1758120189543,70.06133764,234.97,234.96,0.2]
[1758120190124,69.40133764,234.97,234.96,0.2]
[1758120190339,65.14547519,234.97,234.96,0.88]
[1758120190936,65.14547519,234.97,234.96,0.2]
[1758120191328,65.14547519,234.97,234.96,0.88]
[1758120191528,69.40133764,234.97,234.96,0.2]
[1758120191934,69.40133764,234.97,234.96,0.88]
[1758120192135,67.86586245,234.97,234.96,0.88]
[1758120192338,69.38133764,234.97,234.96,0.88]
[1758120193049,65.12547519,234.97,234.96,0.88]
[1758120193436,69.38133764,234.97,234.96,0.2]
[1758120194349,69.38133764,234.97,234.96,0.88]
[1758120194534,65.12547519,234.97,234.96,0.88]
[1758120194925,69.38133764,234.97,234.96,0.88]
[1758120195335,69.38133764,234.97,234.96,0.2]
[1758120195935,67.84586245,234.97,234.96,0.2]
[1758120196260,69.38133764,234.97,234.96,0.2]
[1758120197165,83.63693165,234.97,234.96,0.2]
[1758120197450,95.34180358,234.97,234.93,0.06]
[1758120197625,1.53547519,234.94,234.93,0.06]
[1758120197829,39.35188108,234.94,234.93,0.06]
[1758120199655,70.01188108,234.94,234.93,0.06]
[1758120201361,69.33188108,234.94,234.93,0.06]
[1758120202068,35.79188108,234.94,234.93,0.06]
[1758120202275,69.33188108,234.94,234.93,0.06]
[1758120203644,63.54,234.94,234.93,0.74]
[1758120203850,69.33188108,234.94,234.93,0.74]
[1758120204244,35.79188108,234.94,234.93,0.74]
[1758120204461,69.33188108,234.94,234.93,0.74]
[1758120205173,65.07547519,234.94,234.93,0.74]
[1758120205551,35.07547519,234.94,234.93,0.06]
[1758120205773,39.33188108,234.94,234.93,0.06]
[1758120206871,39.99188108,234.94,234.93,0.06]
[1758120207082,71.05716759,234.94,234.93,0.06]
[1758120208086,84.6527616,234.94,234.93,0.06]
[1758120209062,88.20221586,234.94,234.93,0.06]
[1758120210846,84.6527616,234.94,234.93,0.06]
[1758120212277,48.91728641,234.94,234.93,0.06]
[1758120212462,84.6327616,234.94,234.93,0.06]
[1758120213863,51.1127616,234.94,234.93,0.06]
[1758120214051,88.19105131,234.94,234.93,0.06]
[1758120215480,84.6327616,234.94,234.93,0.06]
[1758120215782,50.4527616,234.94,234.93,0.06]
[1758120215964,83.9727616,234.94,234.93,0.06]
[1758120216368,84.6527616,234.94,234.93,0.06]
[1758120216976,87.529049,234.94,234.93,0.06]
[1758120217173,88.209049,234.94,234.93,0.06]
[1758120217374,84.6527616,234.94,234.93,0.06]
[1758120217688,84.6528097,234.94,234.93,0.06]
[1758120218258,51.1328097,234.94,234.93,0.06]
[1758120218479,84.6528097,234.94,234.93,0.06]
[1758120218859,50.4528097,234.94,234.93,0.06]
[1758120219073,83.9528097,234.94,234.93,0.06]
[1758120220081,50.4528097,234.94,234.93,0.06]
[1758120220262,30.0,234.94,234.93,0.72]
[1758120220468,67.75640589,234.94,234.93,0.72]
[1758120220665,30.0,234.94,234.93,0.72]
[1758120220871,63.5,234.94,234.93,0.72]
[1758120221287,30.0,234.94,234.93,0.72]
[1758120221487,63.5,234.94,234.93,0.72]
[1758120222013,33.5,234.94,234.93,6.5120583]
[1758120222285,33.5,234.94,234.93,2.25547519]
[1758120223190,33.5,234.94,234.93,0.72]
[1758120224990,131.7,234.96,234.93,0.72]
[1758120225197,0.03,234.97,234.93,7.37662989]
[1758120225493,33.5,234.96,234.94,6.65638938]
[1758120225792,33.5,234.96,234.95,0.66]
[1758120228993,0.03,234.97,234.95,7.31628877]
[1758120229296,33.48,234.96,234.95,7.31628877]
[1758120230173,0.03,234.97,234.95,7.31628877]
[1758120230372,0.03,234.97,234.96,0.66]
[1758120231793,0.03,234.97,234.96,4.91604358]
[1758120234877,0.03,234.97,234.96,7.31610763]
[1758120237172,0.03,234.97,234.96,4.91604358]
[1758120237492,0.03,234.97,234.96,7.31610763]
[1758120238872,0.03,234.97,234.96,18.01734573]
[1758120241386,0.03,234.97,234.96,15.61728168]
[1758120241590,0.03,234.97,234.96,18.01734573]
[1758120242296,0.03,234.97,234.96,31.61293974]
[1758120244211,0.03,235.0,234.97,13.59559401]
[1758120244514,0.03,235.0,234.99,15.99565806]
[1758120244879,0.03,235.0,234.99,16.71565806]
[1758120245106,0.03,235.0,234.99,18.41999774]
[1758120245811,0.03,235.0,234.99,22.67549797]
[1758120250990,0.7,235.08,235.0,13.59559401]
[1758120251190,0.03,235.08,235.04,2.40006405]
[1758120251586,0.03,235.08,235.04,3.12006405]
[1758120251815,0.03,235.08,235.04,4.82418589]
[1758120252196,0.03,235.08,235.04,9.07878085]
[1758120252699,0.03,235.08,235.04,5.9587168]
[1758120252908,0.7,235.05,235.04,6.65465901]
[1758120253101,0.7,235.05,235.04,4.25459496]
[1758120253303,0.7,235.05,235.04,6.65465901]
[1758120254001,0.03,235.05,235.04,6.65465901]
[1758120256340,0.03,235.05,235.04,4.25459496]
[1758120256728,0.03,235.05,235.04,6.65465901]
[1758120257501,0.03,235.05,235.03,4.25477598]
[1758120257699,0.03,235.05,234.99,2.40006405]
[1758120258029,2.43006405,235.05,234.98,2.40006405]
[1758120258226,0.67,235.04,234.98,2.40006405]
[1758120258404,0.67,235.03,234.98,2.40006405]
[1758120258605,0.67,235.02,234.98,4.10469426]
[1758120258806,0.67,235.01,234.97,14.89551857]
[1758120259020,0.67,235.0,234.97,4.25586245]
[1758120259218,0.67,234.99,234.97,4.25586245]
[1758120261336,0.67,235.01,234.97,4.25586245]
[1758120261516,0.67,235.0,234.97,4.25586245]
[1758120261831,0.67,234.99,234.97,4.25586245]
[1758120262816,0.67,235.01,234.97,4.25586245]
[1758120263619,0.67,235.0,234.96,0.06]
[1758120265839,4.92537601,235.0,234.96,0.06]
[1758120266044,0.67,235.0,234.96,0.06]
[1758120267447,2.40006405,234.99,234.96,0.06]
[1758120267614,0.67,234.98,234.96,0.06]
[1758120268045,0.67,234.97,234.96,0.06]
[1758120269127,4.92586245,234.97,234.96,0.06]
[1758120270119,34.92586245,234.97,234.96,0.06]
[1758120271941,68.30586245,234.97,234.96,0.06]
[1758120272247,70.01151028,234.97,234.96,0.06]
[1758120273121,40.01151028,234.97,234.96,0.06]
[1758120273321,6.63151028,234.97,234.96,0.06]
[1758120273539,39.99151028,234.97,234.96,0.06]
[1758120274051,42.39157433,234.97,234.96,0.06]
[1758120276173,72.39157433,234.97,234.96,0.06]
[1758120279750,85.98716834,234.97,234.96,0.06]
[1758120283777,85.12397245,234.97,234.96,0.06]
[1758120288568,13.59559401,234.96,234.95,0.06]
[1758120288770,1.53686816,234.94,234.93,0.06]
[1758120288951,34.87686816,234.94,234.93,0.06]
[1758120289154,35.58686816,234.94,234.93,0.06]
[1758120289452,37.29295249,234.94,234.93,0.06]
[1758120289656,80.8885465,234.94,234.93,1e-08]
[1758120290565,85.14495239,234.94,234.93,1e-08]
[1758120290766,13.59559401,234.93,234.91,0.06]
[1758120291086,41.0243408,234.92,234.91,0.06]
[1758120291287,41.7343408,234.92,234.91,0.06]
[1758120291865,71.7343408,234.92,234.91,0.06]
[1758120292086,73.44057068,234.92,234.91,0.06]
[1758120292891,77.69733894,234.92,234.91,1e-08]
[1758120293089,13.59559401,234.91,234.9,1e-08]
[1758120293278,43.59559401,234.91,234.9,1e-08]
[1758120293469,44.30559401,234.91,234.9,1e-08]
[1758120293887,51.98993481,234.91,234.9,1e-08]
[1758120294171,51.98993481,234.91,234.82,0.67]
[1758120294482,1.53686816,234.83,234.82,0.67]
[1758120294655,34.87686816,234.83,234.82,0.67]
[1758120294857,39.13526785,234.83,234.82,0.67]
[1758120295778,43.39475218,234.83,234.82,0.67]
[1758120296561,43.39475218,234.83,234.79,0.67]
[1758120296763,1.53686816,234.8,234.72,5.79635249]
[1758120296979,34.87686816,234.79,234.72,5.79635249]
[1758120297174,33.34,234.78,234.73,0.67]
[1758120297378,33.34,234.77,234.73,0.67]
[1758120297581,33.34,234.76,234.73,4.93021386]
[1758120297776,33.34,234.76,234.74,0.72]
[1758120298189,1.53686816,234.8,234.74,0.72]
[1758120298382,33.34,234.79,234.74,0.72]
[1758120299594,33.34,234.79,234.75,0.72]
[1758120299595,1.53686816,234.76,234.75,0.72]
[1758120299775,34.87686816,234.76,234.75,0.72]
[1758120300800,33.32,234.76,234.75,0.72]
[1758120300984,34.85686816,234.76,234.75,0.72]
[1758120301190,34.85686816,234.76,234.73,0.72]
[1758120301495,1.53686816,234.74,234.71,0.72]
[1758120301678,33.32,234.73,234.72,0.72]
[1758120302372,10.65370193,234.79,234.72,0.72]
[1758120302799,33.32,234.78,234.72,2.25686816]
[1758120303002,12.19078586,234.81,234.74,1.53686816]
[1758120303203,12.19078586,234.81,234.75,0.72]
[1758120303407,33.32,234.8,234.75,0.72]
[1758120303780,34.85686816,234.8,234.75,0.72]
[1758120303984,39.115836,234.8,234.76,0.71]
[1758120304182,1.53686816,234.79,234.72,1.53686816]
[1758120304397,1.53686816,234.79,234.76,0.71]
[1758120304598,39.115836,234.8,234.77,0.71]
[1758120304803,34.85686816,234.8,234.78,0.71]
[1758120305109,39.11585402,234.8,234.73,1.53686816]
[1758120305312,39.11585402,234.8,234.75,0.71]
[1758120305495,1.53686816,234.79,234.73,1.53686816]
[1758120305697,1.53686816,234.78,234.7,4.26075054]
[1758120305888,1.53686816,234.74,234.71,0.71]
[1758120306085,33.32,234.73,234.72,0.71]
[1758120306297,33.32,234.73,234.68,4.26112152]
[1758120306703,33.32,234.73,234.7,1.53686816]
[1758120306890,33.32,234.73,234.71,0.71]
[1758120307211,33.32,234.73,234.71,2.24686816]
[1758120307410,33.32,234.73,234.72,0.71]
[1758120307705,33.32,234.73,234.69,0.71]
[1758120308015,1.53686816,234.75,234.7,4.26075841]
[1758120308186,33.32,234.72,234.7,4.26075841]
[1758120308387,33.32,234.72,234.67,1.53686816]
[1758120308708,34.85686816,234.72,234.68,0.71]
[1758120309099,34.85686816,234.72,234.69,0.71]
[1758120309300,33.32,234.72,234.7,0.71]
[1758120309610,0.66,234.75,234.7,0.71]
[1758120309611,1.53686816,234.76,234.71,0.71]
[1758120309789,34.85686816,234.75,234.71,0.71]
[1758120310099,34.85686816,234.75,234.71,4.97040089]
[1758120310304,33.32,234.74,234.72,0.71]
[1758120310497,33.32,234.74,234.73,0.71]
[1758120311103,34.85686816,234.74,234.7,0.71]
[1758120311308,1.53686816,234.73,234.7,0.71]
[1758120311608,1.53686816,234.72,234.7,0.71]
[1758120311792,33.32,234.71,234.68,0.71]
[1758120312117,34.85686816,234.71,234.68,4.97104832]
[1758120312611,34.85686816,234.71,234.69,0.71]
[1758120312819,34.85686816,234.71,234.68,4.26104832]
[1758120313118,34.85686816,234.71,234.69,0.71]
[1758120313296,1.53686816,234.7,234.67,0.71]
[1758120313497,1.53686816,234.7,234.68,0.71]
[1758120313709,33.32,234.71,234.69,0.71]
[1758120313896,33.32,234.71,234.7,0.71]
[1758120314096,33.32,234.71,234.7,4.97075841]
[1758120314307,0.66,234.77,234.7,4.97075841]
[1758120314619,1.53686816,234.75,234.71,0.71]
[1758120314919,1.53686816,234.75,234.72,0.71]
[1758120315303,1.53686816,234.75,234.7,4.26075841]
[1758120315611,1.53686816,234.75,234.72,4.26039536]
[1758120316102,33.32,234.74,234.72,4.97039536]